bitfinex/quotes_BTCUSD_20220212
["timestamp","ask_amount","ask_price","bid_price","bid_amount"]
[1644702031984,1.2888,42023.0,42021.0,0.01132383]
[1644702032387,1.3888,42023.0,42021.0,0.0111]
[1644702033389,0.0438,42023.0,42021.0,0.0103]
[1644702033790,0.51149347,42026.0,42023.0,0.08759999]
[1644702033990,0.25633963,42026.0,42023.0,0.08759999]
[1644702034630,0.04,42026.0,42023.0,0.08759999]
[1644702035233,0.2402,42047.0,42035.0,0.0875899]
[1644702035432,1.4976,42049.0,42035.0,0.0875899]
[1644702035433,0.5,42045.0,42036.0,0.2590822]
[1644702035631,0.19634267,42045.0,42037.0,0.25309148]
[1644702036331,1.245,42053.0,42037.0,0.25309148]
[1644702036332,0.5952,42058.0,42043.0,0.07164666]
[1644702036533,0.00043631,42050.0,42043.0,0.07164666]
[1644702036935,0.00043631,42050.0,42039.0,0.00043643]
[1644702037132,0.22987888,42047.0,42039.0,0.00043643]
[1644702037336,0.059479,42051.0,42037.0,0.25309148]
[1644702037533,0.00043633,42050.0,42040.0,0.00043643]
[1644702037935,0.00043633,42050.0,42041.0,0.07987636]
[1644702038384,0.21365535,42050.0,42041.0,0.07987636]
[1644702038585,0.21321902,42050.0,42041.0,0.07987636]
[1644702038984,0.56151029,42056.0,42053.0,0.10773407]
[1644702039184,0.05,42055.0,42053.0,0.10773407]
[1644702039784,1.73755429,42056.0,42053.0,0.10773407]
[1644702039987,0.35918596,42055.0,42053.0,0.10773407]
[1644702040186,0.44255429,42056.0,42053.0,0.10773407]
[1644702040187,0.28909747,42054.0,42053.0,0.10773407]
[1644702040386,1.53409747,42054.0,42053.0,0.10773407]
[1644702040587,0.28909747,42054.0,42053.0,0.10773407]
[1644702041391,0.50244881,42056.0,42053.0,0.10773407]
[1644702041589,0.44297181,42056.0,42053.0,0.10773407]
[1644702041786,0.49297181,42056.0,42053.0,0.10773407]
[1644702042030,0.49255429,42056.0,42053.0,0.10773407]
[1644702042231,1.68755429,42056.0,42053.0,0.10773407]
[1644702042431,0.44255429,42056.0,42053.0,0.10773407]
[1644702043731,0.25651465,42055.0,42053.0,0.10773407]
[1644702044533,0.26079545,42055.0,42053.0,0.10773407]
[1644702044833,0.31079545,42055.0,42053.0,0.10773407]
[1644702045033,0.26079545,42055.0,42053.0,0.10773407]
[1644702045236,0.44278446,42056.0,42053.0,0.10773407]
[1644702045883,0.00533719,42054.0,42053.0,0.11185226]
[1644702046585,0.00533719,42054.0,42053.0,0.17710229]
[1644702046985,0.24,42056.0,42053.0,0.17710229]
[1644702047183,0.24,42056.0,42053.0,0.22710229]
[1644702047385,0.0152,42058.0,42054.0,0.19867895]
[1644702047585,0.3,42066.0,42062.0,0.26429415]
[1644702047788,0.3,42066.0,42053.0,0.22710229]
[1644702047789,0.3,42066.0,42053.0,0.11185226]
[1644702047988,0.2497325,42072.0,42053.0,0.11185226]
[1644702048185,0.2497325,42072.0,42053.0,0.15685226]
[1644702048186,0.00181456,42072.0,42053.0,0.15685226]
[1644702048385,0.30181456,42072.0,42053.0,0.15685226]
[1644702048584,0.3,42072.0,42053.0,0.15685226]
[1644702048789,0.3,42073.0,42063.0,0.21266182]
[1644702048985,0.05964759,42078.0,42064.0,0.070856]
[1644702048986,0.3,42076.0,42064.0,0.070856]
[1644702049185,0.00019859,42078.0,42064.0,0.070856]
[1644702049384,0.31,42079.0,42064.0,0.070856]
[1644702049385,0.31019859,42079.0,42064.0,0.070856]
[1644702049628,0.24242621,42071.0,42064.0,0.070856]
[1644702049832,0.24242621,42071.0,42053.0,0.10685226]
[1644702050029,0.359452,42070.0,42053.0,0.10685226]
[1644702050632,0.509452,42070.0,42053.0,0.10685226]
[1644702050829,0.509452,42070.0,42053.0,0.11151639]
[1644702050830,0.00533719,42054.0,42053.0,0.11151639]
[1644702053132,0.36074547,42054.0,42053.0,0.11151639]
[1644702053386,0.46074547,42054.0,42053.0,0.11151639]
[1644702053588,0.36074547,42054.0,42053.0,0.11151639]
[1644702053785,0.46074547,42054.0,42053.0,0.11151639]
[1644702054187,1.70574547,42054.0,42053.0,0.11151639]
[1644702054386,1.70574547,42054.0,42053.0,0.11089639]
[1644702054588,1.70574547,42054.0,42053.0,0.10685639]
[1644702054789,1.70574547,42054.0,42053.0,6.39e-06]
[1644702054992,0.22974199,42053.0,42047.0,0.00045426]
[1644702055188,0.20090558,42038.0,42032.0,0.17749317]
[1644702055390,0.95,42051.0,42033.0,9.819e-05]
[1644702055391,0.0476,42039.0,42033.0,9.819e-05]
[1644702055590,0.0476,42039.0,42032.0,0.17749317]
[1644702057029,0.25680354,42038.0,42033.0,0.00018732]
[1644702057230,0.25680354,42038.0,42033.0,0.00028551]
[1644702057834,0.25680354,42038.0,42033.0,0.00018732]
[1644702058031,0.25680354,42038.0,42032.0,0.17759136]
[1644702058334,0.178484,42043.0,42032.0,0.17759136]
[1644702058335,0.00041725,42045.0,42033.0,0.00041737]
[1644702058535,0.0476,42044.0,42035.0,0.19623172]
[1644702059331,0.0476,42044.0,42039.0,0.25375075]
[1644702059933,0.00041727,42045.0,42039.0,0.25375075]
[1644702060337,0.26985753,42053.0,42042.0,0.26317029]
[1644702060536,0.05293719,42054.0,42048.0,0.25084892]
[1644702060539,0.00533719,42054.0,42048.0,0.25084892]
[1644702060791,0.00041922,42045.0,42042.0,0.26317029]
[1644702061385,0.00041922,42045.0,42040.0,0.00041927]
[1644702061589,0.25215554,42055.0,42036.0,0.05]
[1644702061787,0.25215554,42055.0,42048.0,0.19553242]
[1644702062389,0.04446758,42045.0,42044.0,0.2495606]
[1644702063386,0.04446758,42045.0,42036.0,0.34944292]
[1644702063589,0.04446758,42045.0,42036.0,0.32189621]
[1644702063787,0.04446758,42045.0,42034.0,0.20191789]
[1644702064186,0.04488666,42045.0,42038.0,0.00041914]
[1644702064640,1.5926,42044.0,42038.0,0.00041914]
[1644702064839,0.19385894,42039.0,42038.0,0.00041914]
[1644702065039,0.24145894,42039.0,42038.0,0.00041914]
[1644702065241,0.24145894,42039.0,42033.0,0.00324744]
[1644702065839,0.24145894,42039.0,42031.0,0.25451937]
[1644702066639,0.0476,42039.0,42031.0,0.25451937]
[1644702067441,0.0476,42039.0,42031.0,0.33676041]
[1644702067641,0.00442763,42044.0,42040.0,0.1428]
[1644702067845,0.00442763,42044.0,42041.0,0.22494541]
[1644702068287,0.00442763,42044.0,42040.0,0.1428]
[1644702068885,1.245,42049.0,42040.0,0.1428]
[1644702069084,1.245,42049.0,42040.0,0.14325428]
[1644702069085,0.00045422,42045.0,42040.0,0.14325428]
[1644702069283,0.00045422,42045.0,42041.0,0.21883046]
[1644702070083,1.5631621,42049.0,42041.0,0.21883046]
[1644702070286,0.00045423,42045.0,42041.0,0.00045427]
[1644702070488,0.059489,42044.0,42041.0,0.00045427]
[1644702070684,0.107089,42044.0,42041.0,0.00045427]
[1644702070887,0.0476,42044.0,42041.0,0.00045427]
[1644702071286,0.0476,42044.0,42040.0,0.1428]
[1644702071488,0.0476,42044.0,42040.0,0.14325428]
[1644702072134,0.32817728,42045.0,42040.0,0.14325428]
[1644702072334,0.04425423,42045.0,42040.0,0.14325428]
[1644702072534,0.0438,42045.0,42040.0,0.1428]
[1644702072741,0.04425423,42045.0,42040.0,0.14325428]
[1644702072934,0.24,42044.0,42040.0,0.14325428]
[1644702073735,0.24,42044.0,42040.0,0.1428]
[1644702073935,0.24,42044.0,42040.0,0.14325428]
[1644702074338,0.24,42044.0,42040.0,0.33669626]
[1644702074941,0.24,42044.0,42040.0,0.1428]
[1644702075538,0.00443213,42043.0,42042.0,0.00333266]
[1644702077193,0.27083484,42043.0,42042.0,0.00333266]
[1644702078194,0.00443213,42043.0,42042.0,0.00333266]
[1644702079532,0.23879202,42044.0,42042.0,0.00333266]
[1644702080131,0.00443213,42043.0,42040.0,0.14325479]
[1644702080935,0.00443213,42043.0,42040.0,0.1428]
[1644702083685,0.04323213,42043.0,42040.0,0.1428]
[1644702084282,0.29892225,42043.0,42040.0,0.1428]
[1644702084485,0.04323213,42043.0,42040.0,0.1428]
[1644702085083,0.23860968,42042.0,42040.0,0.1428]
[1644702085282,0.4,42041.0,42033.0,0.02430192]
[1644702085583,0.24304852,42042.0,42041.0,0.00581837]
[1644702085782,0.04267097,42043.0,42041.0,0.00581837]
[1644702086182,0.23879202,42044.0,42041.0,0.00581837]
[1644702087032,0.23879202,42044.0,42041.0,0.06921033]
[1644702087633,0.23879202,42044.0,42041.0,0.00581837]
[1644702088034,0.23879202,42044.0,42042.0,0.21027251]
[1644702088235,0.3,42049.0,42044.0,0.39259043]
[1644702088435,1.4732,42056.0,42044.0,0.39259043]
[1644702088436,1.245,42056.0,42044.0,0.39259043]
[1644702088634,0.0004551,42045.0,42044.0,0.46216042]
[1644702089435,0.3,42049.0,42045.0,0.19643796]
[1644702089636,0.00045509,42047.0,42045.0,0.19643796]
[1644702090635,1.245,42056.0,42045.0,0.19643796]
[1644702090895,0.00045508,42048.0,42045.0,0.14643796]
[1644702091304,0.00045508,42048.0,42044.0,0.39259043]
[1644702091891,0.059477,42053.0,42044.0,0.39259043]
[1644702092091,0.118951,42058.0,42044.0,0.39259043]
[1644702092092,0.00045508,42048.0,42044.0,0.46975386]
[1644702092294,0.00045508,42048.0,42045.0,0.26582697]
[1644702092996,0.2391,42061.0,42045.0,0.26582697]
[1644702093192,0.2391,42061.0,42046.0,0.19802144]
[1644702093395,0.2391,42061.0,42044.0,0.46975386]
[1644702093396,0.00045507,42049.0,42044.0,0.39259043]
[1644702094193,0.24,42049.0,42044.0,0.39259043]
[1644702094397,0.24045507,42049.0,42044.0,0.39259043]
[1644702094839,0.24471319,42049.0,42047.0,0.00321305]
[1644702095240,0.24471319,42049.0,42048.0,0.22317132]
[1644702095442,0.24425812,42049.0,42048.0,0.22317132]
[1644702095640,0.00425812,42049.0,42048.0,0.22317132]
[1644702096141,0.00425812,42049.0,42047.0,0.00321305]
[1644702096342,0.2614707,42049.0,42047.0,0.00321305]
[1644702096542,0.00425812,42049.0,42047.0,0.00321305]
[1644702097149,0.95,42047.0,42035.0,0.30338685]
[1644702097350,0.95,42047.0,41994.0,0.0031]
[1644702097351,0.2,42020.0,41994.0,0.0031]
[1644702097551,0.2,42006.0,41988.0,1.30902844]
[1644702097746,0.049,41993.0,41989.0,0.71434]
[1644702097950,0.049,41993.0,41988.0,0.17536072]
[1644702097951,1.28263496,41990.0,41988.0,0.17536072]
[1644702098147,0.18181939,41984.0,41981.0,0.01]
[1644702098395,0.18181939,41984.0,41978.0,0.25342513]
[1644702098396,1.5477,41982.0,41980.0,0.56420931]
[1644702098594,1.5477,41982.0,41972.0,0.01626]
[1644702098595,1.0,41981.0,41971.0,1.7675867]
[1644702098796,1.0,41979.0,41971.0,1.5967867]
[1644702098993,0.059606,41977.0,41971.0,0.93672877]
[1644702099194,0.5477,41973.0,41971.0,0.90959059]
[1644702099398,0.5477,41973.0,41968.0,0.19897638]
[1644702099399,0.059598,41972.0,41968.0,0.19897638]
[1644702099693,0.41523539,41972.0,41968.0,0.19897638]
[1644702099895,0.03558,41971.0,41968.0,0.19897638]
[1644702100393,0.119212,41967.0,41961.0,0.01]
[1644702100596,0.163012,41967.0,41961.0,0.01]
[1644702100794,0.285225,41967.0,41961.0,0.01]
[1644702100993,0.285225,41967.0,41963.0,9.588e-05]
[1644702101394,0.785225,41967.0,41963.0,9.588e-05]
[1644702101795,1.17433578,41967.0,41964.0,0.00040784]
[1644702102034,1.33652528,41967.0,41964.0,0.00040784]
[1644702102234,1.73652528,41967.0,41964.0,0.00040784]
[1644702102637,1.3878095,41967.0,41964.0,0.00040784]
[1644702102837,1.3878095,41967.0,41963.0,9.588e-05]
[1644702102838,0.8878095,41967.0,41963.0,9.588e-05]
[1644702103036,0.3878095,41967.0,41964.0,0.00043929]
[1644702103235,0.0438,41967.0,41964.0,0.00043929]
[1644702103534,0.0438,41967.0,41966.0,0.6508514]
[1644702103735,0.0438,41967.0,41966.0,0.40492214]
[1644702104134,0.059595,41972.0,41966.0,0.40492214]
[1644702105034,0.059595,41972.0,41971.0,0.20290086]
[1644702105637,0.178753,41981.0,41971.0,0.20290086]
[1644702105638,0.059577,41978.0,41971.0,0.20290086]
[1644702105889,0.26815759,41988.0,41971.0,0.20290086]
[1644702106291,1.16617463,41995.0,41972.0,0.05]
[1644702106292,1.40415056,41992.0,41972.0,0.05]
[1644702106489,0.25357142,41991.0,41980.0,0.22146636]
[1644702106689,0.059567,41985.0,41977.0,0.00043961]
[1644702107589,0.059567,41985.0,41972.0,9.588e-05]
[1644702107791,0.119142,41985.0,41979.0,0.21280301]
[1644702107994,0.119142,41985.0,41979.0,0.21324261]
[1644702108788,0.119142,41985.0,41979.0,9.6e-06]
[1644702108789,0.3,41984.0,41979.0,9.6e-06]
[1644702108993,0.3,41984.0,41967.0,9.588e-05]
[1644702108994,0.059591,41975.0,41967.0,9.588e-05]
[1644702109193,0.059598,41972.0,41962.0,0.00098336]
[1644702109392,0.059598,41972.0,41966.0,0.4086772]
[1644702109393,0.3,41971.0,41966.0,0.4086772]
[1644702109647,0.3,41971.0,41966.0,0.2356772]
[1644702109648,0.02342,41970.0,41966.0,0.2356772]
[1644702109847,0.06722,41970.0,41966.0,0.2356772]
[1644702110047,0.20016,41969.0,41966.0,0.2356772]
[1644702110250,0.20016,41969.0,41960.0,0.01108642]
[1644702110251,0.95,41967.0,41960.0,0.01108642]
[1644702110455,0.05,41962.0,41951.0,0.01]
[1644702110654,0.3438,41961.0,41951.0,0.01]
[1644702110849,0.3438,41961.0,41948.0,0.00144342]
[1644702110850,0.5438,41961.0,41950.0,0.1023203]
[1644702111047,0.47560024,41961.0,41950.0,0.29499526]
[1644702111248,0.05962,41959.0,41950.0,0.29499526]
[1644702111650,0.119237,41959.0,41950.0,0.0873203]
[1644702111848,0.20088,41958.0,41950.0,0.0873203]
[1644702112050,0.50088,41958.0,41950.0,0.0873203]
[1644702112250,0.35,41958.0,41950.0,0.0773203]
[1644702112449,0.1356149,41957.0,41950.0,0.0773203]
[1644702112651,0.35,41958.0,41950.0,0.0773203]
[1644702112652,0.359624,41956.0,41950.0,0.0773203]
[1644702112861,0.359624,41956.0,41952.0,0.00044763]
[1644702113051,0.05962,41959.0,41952.0,0.00044763]
[1644702113299,0.119239,41960.0,41952.0,0.00044763]
[1644702113300,0.3,41960.0,41953.0,0.23193343]
[1644702113689,0.119197,41968.0,41953.0,0.23193343]
[1644702113690,0.3,41967.0,41953.0,0.23193343]
[1644702113894,0.20094,41966.0,41953.0,0.47228348]
[1644702114290,0.3,41967.0,41953.0,0.47228348]
[1644702114492,0.059604,41960.0,41953.0,0.47228348]
[1644702114694,0.059604,41960.0,41956.0,0.08849398]
[1644702114893,0.162997,41968.0,41956.0,0.08849398]
[1644702114894,0.419197,41968.0,41956.0,0.08849398]
[1644702115094,0.419197,41968.0,41960.0,0.19470915]
[1644702115095,0.3,41967.0,41960.0,0.19470915]
[1644702115392,0.119197,41968.0,41960.0,0.18470915]
[1644702115593,0.059591,41970.0,41960.0,0.18470915]
[1644702115796,0.419176,41975.0,41962.0,0.2203552]
[1644702115797,0.3,41974.0,41962.0,0.2203552]
[1644702116195,0.05,41963.0,41950.0,0.0273203]
[1644702116397,0.05,41960.0,41950.0,0.0273203]
[1644702116594,0.62103833,41959.0,41950.0,0.0273203]
[1644702116793,1.18,41958.0,41941.0,0.01]
[1644702117037,1.18,41958.0,41948.0,4.342e-05]
[1644702117038,0.20022,41953.0,41948.0,4.342e-05]
[1644702117237,0.20022,41953.0,41941.0,0.01]
[1644702117238,1.54529605,41952.0,41941.0,0.01]
[1644702117438,0.75072652,41952.0,41941.0,0.00028476]
[1644702117639,0.044648,41951.0,41941.0,0.00028476]
[1644702117838,0.044648,41951.0,41937.0,0.14157045]
[1644702117839,0.3438,41950.0,41940.0,0.00056952]
[1644702118040,0.34345073,41950.0,41942.0,0.00176745]
[1644702118839,0.34345073,41950.0,41940.0,0.19105965]
[1644702118840,0.16273673,41950.0,41943.0,0.0630151]
[1644702119042,0.163926,41951.0,41943.0,0.0630151]
[1644702119044,0.044648,41951.0,41943.0,0.0630151]
[1644702119239,0.059611,41955.0,41951.0,0.0895829]
[1644702119439,0.059611,41955.0,41941.0,0.05]
[1644702119641,0.3,41954.0,41940.0,0.19105965]
[1644702119839,0.059611,41955.0,41947.0,0.22512148]
[1644702120241,0.059611,41955.0,41947.0,0.22012148]
[1644702120641,0.059611,41955.0,41949.0,0.2081048]
[1644702120896,0.054611,41955.0,41949.0,0.2081048]
[1644702122088,0.049611,41955.0,41949.0,0.2081048]
[1644702122288,0.049611,41955.0,41951.0,0.00320491]
[1644702122590,0.00405244,41957.0,41955.0,0.0673227]
[1644702122789,0.00405244,41957.0,41951.0,0.00320491]
[1644702123190,0.04785244,41957.0,41951.0,0.00320491]
[1644702123389,0.00405244,41957.0,41951.0,0.00320491]
[1644702123593,0.00044213,41966.0,41951.0,0.00320491]
[1644702123792,0.00044213,41966.0,41965.0,0.26957195]
[1644702123991,0.3,41971.0,41965.0,0.26957195]
[1644702124190,0.00044214,41966.0,41965.0,0.26957195]
[1644702124846,0.00034214,41966.0,41965.0,0.26957195]
[1644702125045,0.3,41978.0,41965.0,0.26957195]
[1644702125243,0.3,41978.0,41976.0,0.06831702]
[1644702125445,0.0438,41995.0,41976.0,0.06331702]
[1644702125643,0.059581,41984.0,41976.0,0.06331702]
[1644702126044,0.059575,41982.0,41976.0,0.06319529]
[1644702126249,0.059575,41982.0,41974.0,0.19048185]
[1644702126448,0.25504275,41988.0,41963.0,0.1]
[1644702126449,0.01230971,41976.0,41963.0,0.05]
[1644702126645,0.01230971,41976.0,41951.0,0.00320491]
[1644702126646,0.059595,41974.0,41954.0,0.05]
[1644702126844,0.059595,41974.0,41955.0,0.3]
[1644702127044,0.3,41973.0,41951.0,0.00320491]
[1644702127245,2.4331703,41967.0,41951.0,0.00320491]
[1644702127447,0.475,41966.0,41946.0,0.05]
[1644702127646,0.059609,41964.0,41950.0,0.00040577]
[1644702127846,0.00589713,41954.0,41950.0,0.00040577]
[1644702128303,0.00589713,41954.0,41946.0,0.05]
[1644702128304,0.059617,41953.0,41946.0,0.04540577]
[1644702128593,0.059617,41953.0,41940.0,0.00162344]
[1644702128594,0.478901,41952.0,41940.0,0.00162344]
[1644702128896,0.478901,41952.0,41946.0,0.25879124]
[1644702128897,0.0438,41951.0,41946.0,0.25879124]
[1644702129091,0.28172307,41943.0,41937.0,0.14157045]
[1644702129393,0.0438,41951.0,41938.0,0.0838668]
[1644702129394,0.3,41950.0,41938.0,0.0838668]
[1644702129596,0.06551613,41954.0,41937.0,0.14270949]
[1644702129597,0.00589713,41954.0,41949.0,0.07754745]
[1644702129795,0.00089713,41954.0,41949.0,0.07754745]
[1644702129992,0.00089713,41954.0,41953.0,0.21487378]
[1644702130198,0.00109643,41954.0,41953.0,0.21487378]
[1644702130397,0.00109643,41954.0,41953.0,0.20987378]
[1644702130592,0.10530743,41962.0,41953.0,0.20987378]
[1644702130993,0.059601,41963.0,41961.0,0.07253464]
[1644702131193,0.059601,41963.0,41960.0,0.21217728]
[1644702131595,0.059601,41963.0,41960.0,0.4046955]
[1644702132443,0.119195,41968.0,41967.0,0.07733745]
[1644702133044,0.119195,41968.0,41966.0,0.00390666]
[1644702133646,0.119195,41968.0,41947.0,0.0938]
[1644702133647,0.00781332,41964.0,41948.0,0.41247169]
[1644702133844,0.0596,41963.0,41948.0,0.41247169]
[1644702134048,0.0596,41963.0,41956.0,0.07978081]
[1644702134446,0.0596,41963.0,41958.0,0.22394625]
[1644702134653,0.00781332,41964.0,41958.0,0.22394625]
[1644702135146,0.00781332,41964.0,41959.0,0.21349596]
[1644702135147,0.13223486,41963.0,41959.0,0.21349596]
[1644702135346,0.13223486,41963.0,41960.0,0.3226383]
[1644702135811,0.059584,41980.0,41960.0,0.3226383]
[1644702135812,0.119165,41984.0,41961.0,0.85]
[1644702136006,0.119165,41984.0,41962.0,0.05]
[1644702136304,0.119165,41984.0,41963.0,0.48070447]
[1644702136905,0.059578,41983.0,41969.0,0.23205214]
[1644702137105,0.059581,41976.0,41969.0,0.47057204]
[1644702137507,0.059581,41976.0,41963.0,0.07804961]
[1644702137707,0.119165,41979.0,41963.0,0.07804961]
[1644702138107,0.00461743,41977.0,41967.0,0.00459099]
[1644702138304,0.00461743,41977.0,41972.0,0.074977]
[1644702138504,0.00461743,41977.0,41967.0,0.00459099]
[1644702138506,0.00461743,41977.0,41969.0,0.24010861]
[1644702138904,0.00461743,41977.0,41969.0,0.49775494]
[1644702138905,0.0002352,41974.0,41969.0,0.49775494]
[1644702139546,0.0002352,41974.0,41967.0,0.00459099]
[1644702139749,0.119181,41974.0,41967.0,0.00459099]
[1644702139946,0.119195,41973.0,41967.0,0.00459099]
[1644702140146,0.05959,41972.0,41967.0,0.00459099]
[1644702140346,0.05959,41972.0,41969.0,0.23251246]
[1644702140849,0.00461743,41977.0,41971.0,0.25443399]
[1644702141246,0.0002352,41973.0,41971.0,0.25443399]
[1644702142146,0.059581,41976.0,41971.0,0.25443399]
[1644702142345,0.00044482,41974.0,41971.0,0.25443399]
[1644702143386,0.059581,41976.0,41971.0,0.25443399]
[1644702143586,0.00044481,41975.0,41971.0,0.25443399]
[1644702144187,0.00044481,41975.0,41973.0,0.00186917]
[1644702144389,0.00044481,41975.0,41974.0,0.0723816]
[1644702144587,0.06423478,41976.0,41974.0,0.0723816]
[1644702144788,0.06467959,41976.0,41974.0,0.0723816]
[1644702145393,0.00509859,41976.0,41974.0,0.0723816]
[1644702145589,0.00465378,41976.0,41974.0,0.0723816]
[1644702145791,0.00465378,41976.0,41975.0,0.31325179]
[1644702146790,0.0005048,41977.0,41976.0,0.21556637]
[1644702147052,6e-05,41977.0,41976.0,0.54739186]
[1644702148648,6e-05,41977.0,41976.0,0.21556637]
[1644702149248,0.059567,41986.0,41978.0,0.23870444]
[1644702149450,0.059567,41986.0,41977.0,0.06676263]
[1644702149654,0.23,41977.0,41969.0,0.00186965]
[1644702150650,0.23,41977.0,41971.0,0.20961631]
[1644702150897,0.00042219,41975.0,41971.0,0.20961631]
[1644702151699,0.359581,41976.0,41969.0,0.00186965]
[1644702151897,0.00042219,41975.0,41969.0,0.00186965]
[1644702152301,0.11960619,41975.0,41969.0,0.00186965]
[1644702152698,0.11960619,41975.0,41971.0,0.25606849]
[1644702152901,0.119184,41975.0,41971.0,0.25606849]
[1644702153098,0.119184,41975.0,41971.0,0.19079612]
[1644702153299,0.00042219,41974.0,41971.0,0.19079612]
[1644702153500,0.00042219,41974.0,41969.0,0.00186965]
[1644702153701,0.00042219,41974.0,41953.0,0.0004224]
[1644702153702,0.0438,41973.0,41953.0,0.0004224]
[1644702153902,0.3,41972.0,41953.0,0.0004224]
[1644702154102,0.3,41972.0,41962.0,0.08302655]
[1644702154549,0.00040951,41965.0,41963.0,0.23956988]
[1644702155348,0.059592,41970.0,41963.0,0.23956988]
[1644702155549,0.00040951,41966.0,41963.0,0.23956988]
[1644702156551,0.26668545,41976.0,41963.0,0.23956988]
[1644702156753,0.23330148,41977.0,41970.0,0.26188922]
[1644702157151,0.059585,41974.0,41970.0,0.26188922]
[1644702157952,0.05999633,41974.0,41970.0,0.26188922]
[1644702158589,0.05999633,41974.0,41970.0,0.24688922]
[1644702158795,0.05,41971.0,41953.0,0.00041154]
[1644702158992,0.05,41971.0,41944.0,0.12031204]
[1644702158993,0.0339,41966.0,41944.0,0.00113904]
[1644702159191,0.0339,41966.0,41955.0,0.08730513]
[1644702159192,0.57110124,41965.0,41955.0,0.08730513]
[1644702159492,1.0,41961.0,41954.0,0.00155806]
[1644702159702,1.0,41961.0,41938.0,0.05]
[1644702159703,0.95041,41953.0,41938.0,0.05]
[1644702159929,0.95041,41953.0,41917.0,0.179837]
[1644702159930,0.023,41940.0,41917.0,0.001]
[1644702160097,0.5477,41932.0,41915.0,0.00086192]
[1644702160293,0.5477,41932.0,41908.0,0.043]
[1644702160294,0.5477,41916.0,41908.0,0.043]
[1644702160501,0.04761688,41920.0,41908.0,0.0749]
[1644702160502,1.49177635,41909.0,41908.0,0.0749]
[1644702160695,1.49177635,41909.0,41884.0,0.23340558]
[1644702160696,3.08258323,41909.0,41884.0,0.23340558]
[1644702160892,3.08258323,41909.0,41884.0,0.05]
[1644702160893,0.99463635,41894.0,41884.0,0.05]
[1644702161093,0.99463635,41894.0,41858.0,0.00100078]
[1644702161094,0.99463635,41885.0,41877.0,0.00105664]
[1644702161294,0.99463635,41885.0,41862.0,16.75128431]
[1644702161295,0.99463635,41878.0,41862.0,16.75128431]
[1644702161492,0.95,41883.0,41862.0,16.75128431]
[1644702161493,0.99463635,41876.0,41862.0,16.53878431]
[1644702161693,0.02426,41883.0,41862.0,16.53878431]
[1644702161694,0.0438,41875.0,41869.0,0.07864642]
[1644702161895,0.3,41881.0,41862.0,13.79125179]
[1644702161896,0.98963635,41870.0,41862.0,13.79125179]
[1644702162154,0.9477,41863.0,41862.0,0.45272924]
[1644702162349,0.9477,41863.0,41840.0,0.00028576]
[1644702162350,0.51405674,41854.0,41840.0,0.00028576]
[1644702162553,0.51405674,41854.0,41817.0,0.001]
[1644702162554,1.16507463,41841.0,41817.0,0.001]
[1644702162754,1.84318361,41829.0,41820.0,1.0]
[1644702162949,0.05447,41830.0,41801.0,0.40372328]
[1644702163151,0.05,41823.0,41802.0,0.71744]
[1644702163348,0.03918,41813.0,41801.0,0.00093368]
[1644702163548,0.03918,41813.0,41799.0,0.15]
[1644702163549,0.07388,41812.0,41800.0,1.76410556]
[1644702163748,0.07388,41812.0,41800.0,1.73910556]
[1644702163749,0.09947921,41810.0,41800.0,1.73910556]
[1644702163950,0.1447666,41811.0,41800.0,1.73910556]
[1644702163951,0.05,41809.0,41800.0,1.73910556]
[1644702164147,0.05,41809.0,41800.0,0.26087678]
[1644702164351,0.05,41805.0,41763.0,0.00026]
[1644702164652,0.05,41805.0,41745.0,0.18110884]
[1644702164653,0.03353,41778.0,41719.0,0.45]
[1644702164855,0.12347,41784.0,41752.0,0.13]
[1644702165052,0.02633,41785.0,41752.0,0.13]
[1644702165053,0.00710342,41782.0,41753.0,0.270048]
[1644702165248,0.059641,41781.0,41752.0,0.4]
[1644702165450,0.30219119,41787.0,41758.0,0.332323]
[1644702165649,0.2,41777.0,41753.0,0.0402]
[1644702165932,0.97095433,41781.0,41753.0,0.03311373]
[1644702165933,0.97095433,41775.0,41753.0,0.03311373]
[1644702166131,0.02828,41787.0,41753.0,0.03311373]
[1644702166132,0.15076,41793.0,41754.0,0.95]
[1644702166334,0.4,41809.0,41789.0,0.2]
[1644702166335,0.02392,41808.0,41789.0,0.2]
[1644702166534,0.027658,41805.0,41765.0,0.0439]
[1644702166733,0.01,41789.0,41765.0,0.0001]
[1644702166934,0.02579,41794.0,41785.0,0.07054835]
[1644702167134,0.10091925,41801.0,41796.0,0.0802558]
[1644702167334,0.1,41801.0,41785.0,0.00180996]
[1644702167534,0.10534218,41799.0,41785.0,0.00180996]
[1644702167733,0.0623,41803.0,41785.0,0.00180996]
[1644702167734,0.09643,41803.0,41785.0,0.00180996]
[1644702167934,0.0285232,41803.0,41785.0,0.00180996]
[1644702168137,0.0285232,41803.0,41795.0,0.21448631]
[1644702168434,0.16286556,41817.0,41800.0,0.07983367]
[1644702168634,0.159909,41822.0,41801.0,0.26996323]
[1644702168635,1.245,41807.0,41801.0,0.26996323]
[1644702168833,1.245,41807.0,41800.0,0.07983367]
[1644702168834,1.24261661,41807.0,41800.0,0.07983367]
[1644702169041,0.12179167,41822.0,41804.0,0.05]
[1644702169234,0.12179167,41822.0,41791.0,0.0001]
[1644702169235,0.01,41829.0,41805.0,0.39667465]
[1644702169433,0.01,41829.0,41798.0,0.0004602]
[1644702169434,0.0859481,41822.0,41798.0,0.0004602]
[1644702169653,0.169657,41846.0,41798.0,0.0004602]
[1644702169654,0.119657,41846.0,41819.0,0.045]
[1644702169862,0.119657,41846.0,41810.0,0.05]
[1644702170054,0.005,41811.0,41798.0,0.0004602]
[1644702170255,1.06507463,41811.0,41798.0,2e-07]
[1644702170459,0.48263635,41822.0,41799.0,0.045]
[1644702170658,0.09194579,41838.0,41815.0,0.2]
[1644702170960,0.24997174,41852.0,41802.0,0.00040603]
[1644702170961,0.005,41822.0,41802.0,0.00040603]
[1644702171155,0.50232376,41825.0,41806.0,0.35]
[1644702171353,0.005,41832.0,41813.0,0.19476727]
[1644702171562,0.9998,41840.0,41832.0,0.2]
[1644702171563,0.03413583,41839.0,41832.0,0.2]
[1644702171752,0.03828097,41825.0,41823.0,0.06632374]
[1644702171953,0.87615357,41826.0,41825.0,0.2]
[1644702172157,0.0402,41839.0,41838.0,0.2]
[1644702172354,0.94897213,41860.0,41828.0,0.24451725]
[1644702172357,0.21,41832.0,41828.0,0.24451725]